Cogmind - Beta 13 @@@ ROGUE MODE // 2024.04.19 @ 04:17:33 Player: ForestDarkPsy Result: Self-destructed Performance ------------- Evolutions (1) 500 Regions Visited (3) 600 Robots Destroyed (49) 245 Value Destroyed (1184) 1184 Prototype IDs (6) 120 Alien Tech Used (0) 0 Bonus (44) 44 TOTAL SCORE: 2693 Bonus ------- High Alert Combat Kills 44 Cogmind --------- Core Integrity 200/400 Matter 290/300 Energy 265/265 System Corruption 3% Temperature Cool (0) Movement Treading (160) Location -9/Mines Parts ------- > --- POWER (1) -------- Improved Ion Engine > --- PROPULSION (2) --- Light Treads Light Treads (fused) > --- UTILITY (4) ------ Large Storage Unit Structural Scanner Hacking Suite > --- WEAPON (2) ------- Mini Grenade Launcher Heavy Hammer > --- INVENTORY (15) --- Ion Engine Light Treads Light Treads Light Treads Medium Storage Unit Particle Cannon Improved Assault Rifle Improved Assault Rifle Peak State ------------ > --- POWER ------------ Light Ion Engine > --- PROPULSION ------- Light Treads Improved Treads > --- UTILITY ---------- Improved Terrain Scanner Terrain Scan Processor Seismic Detector Improved Targeting Computer > --- WEAPON ----------- Heavy Assault Rifle Mini Grenade Launcher > --- INVENTORY -------- Structural Scanner Machine Analyzer Hacking Suite Assault Rifle Improved Assault Rifle [Rating: 17] Favorites ----------- Power Light Ion Engine Engine Light Ion Engine Propulsion Light Treads Treads Light Treads Leg Aluminum Leg Utility Structural Scanner Device Structural Scanner Storage Large Storage Unit Processor Terrain Scan Processor Hackware Hacking Suite Protection Medium Armor Plating Weapon Heavy Hammer Energy Gun Medium Laser Energy Cannon Ion Cannon Ballistic Gun Light Assault Rifle Launcher Mini Grenade Launcher Impact Weapon Heavy Hammer Build | -11 -10 -9 -9 ------- Run | Yrd Mat Mat Min Slots Evolved 2 | . . 2 . Power . | . . . . Propulsion . | . . . . Utility 2 | . . 2 . Weapon . | . . . . Parts Attached 72 | 7 11 53 1 Power 5 | 1 1 3 . Engine 5 | 1 1 3 . Core . | . . . . Reactor . | . . . . Propulsion 16 | 2 2 12 . Treads 11 | . . 11 . Leg 5 | 2 2 1 . Wheel . | . . . . Hover . | . . . . Flight . | . . . . Utility 21 | 1 4 16 . Device 11 | 1 3 7 . Storage 2 | . . 2 . Processor 3 | . 1 2 . Hackware 1 | . . 1 . Protection 4 | . . 4 . Artifact . | . . . . Weapon 30 | 3 4 22 1 Energy Gun 6 | 2 3 1 . Energy Cannon 4 | . . 4 . Ballistic Gun 11 | 1 1 9 . Ballistic Cannon . | . . . . Launcher 4 | . . 3 1 Special Weapon . | . . . . Impact Weapon 5 | . . 5 . Slashing Weapon . | . . . . Piercing Weapon . | . . . . Special Melee Weapon . | . . . . Unidentified Prototypes 1 | . . 1 . Corrupted Parts 1 | . . 1 . System Corruption 3 | . . 3 . Parts Lost 8 | . 1 7 . Power 1 | . . 1 . Propulsion 1 | . . 1 . Utility 4 | . 1 3 . Weapon 2 | . . 2 . Highest Loss Streak 5 | . 1 5 . To Critical Strikes . | . . . . Average Slot Usage (%) 96 | . 97 96 86 Engine 11 | . 14 10 11 Treads 16 | . . 19 22 Leg 6 | . 28 1 . Device 19 | . 17 20 11 Storage 2 | . . 2 11 Processor 8 | . 8 9 . Hackware 5 | . . 6 11 Protection 3 | . . 4 . Energy Gun 4 | . 18 1 . Energy Cannon 2 | . . 3 . Ballistic Gun 6 | . 9 6 . Launcher 2 | . . 2 9 Impact Weapon 5 | . . 6 11 Naked Turns . | . . . . Heaviest Build 44 | 9 11 44 32 Greatest Support 43 | 20 20 43 40 Greatest Overweight (x) 1 | . . 1 . Average Overweight (x) . | . . . . Largest Inventory Capacity 15 | 5 5 15 15 Average Capacity 6 | 5 5 6 15 Most Carried 9 | 2 5 9 9 Average Carried 5 | 1 4 5 8 Final Capacity 15 | 5 5 15 15 Final Carried 9 | 2 5 9 8 Class Distribution -------------------- 46% | Scavenger-Mutant 28% | Mutant 14% | Scavenger-Skirmisher 10% | Scavenger-Assassin Dominant Class ---------------- Scavenger-Mutant | -10/Materials Scavenger-Mutant | -9/Materials Scavenger-Mutant | -9/Mines Resources | -11 -10 -9 -9 ----------- Run | Yrd Mat Mat Min Matter Collected 1359 | 277 279 803 . Remotely . | . . . . Salvage Created 1704 | 175 256 1273 . Parts 110 | 13 11 86 . Haulers Intercepted 2 | . . 2 . Recyclers Shooed 6 | 2 2 2 . Parts Field Recycled . | . . . . Retrieved Matter . | . . . . Parts Self-Destructed . | . . . . Prevented . | . . . . Kills | -11 -10 -9 -9 ------- Run | Yrd Mat Mat Min Combat Hostiles Destroyed 30 | . 2 28 . Melee 3 | . . 3 . Guns 16 | . 2 14 . Cannons 2 | . . 2 . AOE 6 | . . 6 . Classes Destroyed 11 | 2 3 6 . Worker 1 | . . 1 . Tunneler 5 | 5 . . . Hauler 2 | . . 2 . Recycler 2 | 1 1 . . Mechanic 1 | . . 1 . Operator 4 | . 1 3 . Watcher 4 | . 1 3 . Swarmer 7 | . . 7 . Grunt 14 | . 2 12 . Brawler 1 | . . 1 . Sentry 8 | . . 8 . Best Kill Streak 8 | 2 2 8 . Combat Bots Only 8 | . 1 8 . Max Kills in Single Turn 3 | 1 1 3 . Gunslinging 1 | . . 1 . Exploded 2 | . . 2 . Melee 1 | . . 1 . Uniques/NPCs Destroyed . | . . . . Combat | -11 -10 -9 -9 -------- Run | Yrd Mat Mat Min Hostile Shots Fired 176 | . 24 152 . Missed 45 | . 6 39 . Damage Taken 1834 | . 277 1557 . Core 278 | . 78 200 . Absorbed by Shields . | . . . . Redirected to Shielding 39 | . . 39 . Regen/Repaired (Parts) 157 | . . 157 . Core Remaining (%) 84 | 100 68 . . Volleys Fired 122 | 21 19 82 . Largest 2 | 2 2 2 . Hottest 90 | 90 80 90 . Shots Fired 212 | 42 34 136 . Gun 184 | 42 34 108 . Cannon 21 | . . 21 . Launcher 7 | . . 7 . Special . | . . . . Kinetic 83 | 17 14 52 . Thermal 69 | 21 15 33 . Explosive 7 | . . 7 . Electromagnetic 53 | 4 5 44 . Robot Hit Streak 22 | 5 12 22 . Robot Miss Streak 3 | 3 1 3 . Penetration Max . | . . . . Secondary Targets 3 | . 1 2 . Max Gunslinging Chain 1 | . 1 1 . Shots Hit Robots 175 | 25 30 120 . Core Hits 75 | 8 12 55 . Critical Kills . | . . . . Critical Parts Destroyed 2 | . . 2 . Critical Strikes 9 | 2 2 5 . Burn 5 | 2 2 1 . Corrupt 2 | . . 2 . Smash 2 | . . 2 . Melee Attacks 36 | . . 36 . Impact 36 | . . 36 . Slashing . | . . . . Piercing . | . . . . Sneak Attacks 3 | . . 3 . Combat Hostiles 1 | . . 1 . Follow-up Attacks . | . . . . Damage Inflicted 3290 | 275 361 2654 . Guns 1660 | 275 334 1051 . Cannons 359 | . . 359 . Explosions 460 | . 27 433 . Melee 811 | . . 811 . Ramming . | . . . . Kinetic 674 | 62 104 508 . Thermal 834 | 174 176 484 . Explosive 433 | . . 433 . Electromagnetic 538 | 39 81 418 . Impact 811 | . . 811 . Slashing . | . . . . Piercing . | . . . . Highest Corruption 3 | . . 3 3 Average Corruption 3 | . . 3 3 Corruption Purged . | . . . . Corruption Blocked . | . . . . Effects 54 | . . 53 1 Message Errors 10 | . . 9 1 Matter Fused 14 | . . 14 . Heat Flow Errors 10 | . . 10 . Energy Discharges 10 | . . 10 . Parts Fused 1 | . . 1 . Data Loss (minor) 6 | . . 6 . Data Loss (major) 2 | . . 2 . Misfires 1 | . . 1 . Overload Shots . | . . . . Overflow Damage 93 | . . 93 . Projectiles . | . . . . Explosions 21 | . . 21 . Melee 72 | . . 72 . Knockbacks 2 | . . 2 . Impact 2 | . . 2 . Kinetic . | . . . . Secondary . | . . . . Self-Inflicted Damage 77 | . 22 55 . Shots 3 | . 1 2 . Rammed . | . . . . Targets Rammed . | . . . . Kicked . | . . . . Crushed . | . . . . Highest Temperature 378 | 120 332 378 . Average Temperature 106 | 37 151 114 . Received Heat Transfer 759 | . 180 579 . Effects 2 | . . 2 . Shutdowns 1 | . . 1 . Interference 1 | . . 1 . Siege Activations . | . . . . Robots Corrupted . | . . . . Combat Hostiles . | . . . . Parts Fried 6 | 1 1 4 . Impact Corruptions 6 | . . 6 . Robots Melted 1 | . . 1 . Combat Hostiles 1 | . . 1 . Parts Melted 4 | 2 . 2 . Heat Transferred 2344 | 666 642 1036 . Parts Sabotaged . | . . . . Parts Stolen . | . . . . Parts Stripped . | . . . . Power Chain Reactions 1 | . 1 . . Alert | -11 -10 -9 -9 ------- Run | Yrd Mat Mat Min Peak Influence 468 | 30 93 468 181 Initial 181 | . 19 1 181 Average 140 | 13 32 173 181 Maximum Alert Level 2 | . . 2 . Low Security (%) 72 | 100 100 63 100 Level 1 8 | . . 11 . Level 2 18 | . . 24 . Level 3 . | . . . . Level 4 . | . . . . Level 5 . | . . . . High Security . | . . . . Max Security . | . . . . Squads Dispatched 1 | . . 1 . Investigation 1 | . . 1 . Extermination . | . . . . Reinforcement . | . . . . Assault . | . . . . Garrison . | . . . . Intercept . | . . . . Searches Triggered . | . . . . Construction Impeded . | . . . . Haulers Reinforced . | . . . . Active Scanning Responses . | . . . . Cargo Convoy Interrupts . | . . . . Stealth | -11 -10 -9 -9 --------- Run | Yrd Mat Mat Min Distress Signals 6 | . . 6 . Communications Jammed . | . . . . Distress Signals . | . . . . Times Spotted 54 | . 4 50 . Peak Tracking Total 9 | . 2 9 . Tactical Retreats 1 | . . 1 . Traps | -11 -10 -9 -9 ------- Run | Yrd Mat Mat Min Traps Triggered . | . . . . Indirectly . | . . . . Trap Hack Attempts . | . . . . Triggered . | . . . . Disarmed . | . . . . Reprogrammed . | . . . . Reused . | . . . . Traps Extracted . | . . . . Installed . | . . . . Triggered . | . . . . Machines | -11 -10 -9 -9 ---------- Run | Yrd Mat Mat Min Machines Disabled 1 | . . 1 . Max in Single Turn 1 | . . 1 . Machines Repaired . | . . . . Machines Dismantled . | . . . . Machines Sabotaged . | . . . . Overloaded Fab Kills . | . . . . Hacking | -11 -10 -9 -9 --------- Run | Yrd Mat Mat Min Machines Accessed 21 | . 7 14 . Terminals 17 | . 6 11 . Fabricators . | . . . . Repair Stations 2 | . . 2 . Recycling Units 2 | . 1 1 . Scanalyzers . | . . . . Garrison Access . | . . . . Total Hacks 63 | . 19 44 . Successful 37 | . 6 31 . Failed 26 | . 13 13 . Catastrophic 4 | . 3 1 . Database Lockouts . | . . . . Manual 22 | . 9 13 . Terminals 51 | . 17 34 . Fabricators . | . . . . Repair Stations 8 | . . 8 . Recycling Units 4 | . 2 2 . Scanalyzers . | . . . . Garrison Access . | . . . . Terminal Hacks 20 | . 3 17 . Record 3 | . . 3 . Part Schematic 1 | . . 1 . Robot Analysis 1 | . 1 . . Prototype ID Bank 3 | . . 3 . Terminal Index 1 | . 1 . . Scanalyzer Index 1 | . . 1 . Alert Level 3 | . . 3 . Unreport Threat 1 | . . 1 . Locate Traps 1 | . . 1 . Dispatch Records 1 | . . 1 . Security Status 1 | . . 1 . Patrol Status 1 | . . 1 . Recall Investigation 1 | . 1 . . Zone Layout 1 | . . 1 . Fabricator Hacks . | . . . . Repair Station Hacks 8 | . . 8 . Scan Component 4 | . . 4 . Repair 4 | . . 4 . Recycling Unit Hacks 2 | . 1 1 . Report Inventory 1 | . . 1 . Retrieve Components 1 | . 1 . . Scanalyzer . | . . . . Garrison Access Hacks . | . . . . Unauthorized Hacks 7 | . 2 5 . Terminals 6 | . 2 4 . Botnet 6 | . 2 4 . Fabricators . | . . . . Repair Stations . | . . . . Recycling Units 1 | . . 1 . Tunnel 1 | . . 1 . Scanalyzers . | . . . . Garrison Access . | . . . . Data Cores Recovered 3 | . 1 2 . Used . | . . . . Hacking Detections 18 | . 7 11 . Full Trace Events 1 | . 1 . . Feedback Events . | . . . . Feedback Blocked . | . . . . Robot Schematics Acquired . | . . . . Robots Built . | . . . . Authchips . | . . . . Time . | . . . . Total Robot Build Rating . | . . . . Part Schematics Acquired 1 | . . 1 . Parts Built . | . . . . Authchips . | . . . . Time . | . . . . Total Part Build Rating . | . . . . Parts Repaired 4 | . . 4 . Time 143 | . . 143 . Parts Recycled . | . . . . Recycled Matter . | . . . . Retrieved Matter . | . . . . Retrieved Components 10 | . 10 . . Parts Scanalyzed . | . . . . Part Schematics Acquired . | . . . . Parts Damaged . | . . . . Bothacking | -11 -10 -9 -9 ------------ Run | Yrd Mat Mat Min Used RIF Installer . | . . . . Robots Hacked . | . . . . Non-combat . | . . . . Combat . | . . . . Robot Hacks Applied . | . . . . Relay Couplers Released . | . . . . Fabnet Peak Effective % . | . . . . Robots Rewired . | . . . . Allies Hacked . | . . . . Hacks Repelled . | . . . . Allies | -11 -10 -9 -9 -------- Run | Yrd Mat Mat Min Total Allies . | . . . . Largest Group . | . . . . Highest-Rated Group . | . . . . Highest-Rated Ally . | . . . . Total Orders . | . . . . Ally Attacks . | . . . . Total Damage . | . . . . Kills . | . . . . Allies Corrupted . | . . . . Allies Melted . | . . . . Intel | -11 -10 -9 -9 ------- Run | Yrd Mat Mat Min Robot Analysis Total 1 | . 1 . . Derelict Logs Recovered . | . . . . Drone Launches . | . . . . Drone Recoveries . | . . . . Exploration | -11 -10 -9 -9 ------------- Run | Yrd Mat Mat Min Turns Passed 4110 | 194 730 3117 69 Spaces Moved 1752 | 106 319 1285 42 Core 7 | 7 . . . Treads 1225 | . . 1183 42 Legs 520 | 99 319 102 . Wheels . | . . . . Hover . | . . . . Flight . | . . . . Fastest Speed 50 | 50 120 120 160 Average Speed 151 | 115 120 162 160 Slowest Speed 240 | 120 120 240 160 Overloaded Moves . | . . . . Propulsion Burnouts . | . . . . Robots Hopped . | . . . . Cave-ins Triggered . | . . . . Exploration Rate (%) 43 | 5 62 95 12 Regions Visited 3 Branch Regions 1 Pre-discovered Areas 1 | . . 1 . Known Exits Taken . | . . . . Unknown Exits Taken 3 | 1 1 1 . Scrap Searched . | . . . . Spaces Dug 21 | . . 21 . Terrain Destroyed 79 | . 3 76 . Melee 10 | . . 10 . Projectile . | . . . . AOE 69 | . 3 66 . Terrain Rammed . | . . . . Walls Destroyed . | . . . . Machines Disabled . | . . . . Actions | -11 -10 -9 -9 --------- Run | Yrd Mat Mat Min Total 2929 | 135 633 2118 43 Wait 904 | . 276 628 . Move 1749 | 105 318 1284 42 Hop . | . . . . Pick Up 18 | 2 4 12 . Fast Attach 22 | 6 3 13 . Attach 12 | . 1 10 1 Detach 3 | . 1 2 . Swap 38 | 1 7 30 . Drop 25 | . 4 21 . Fire 122 | 21 19 82 . Melee 36 | . . 36 . Ram . | . . . . Kick . | . . . . Crush . | . . . . Escape Stasis . | . . . . Rewire . | . . . . Trap . | . . . . Miscellaneous . | . . . . Route ------- -11/Scrapyard -10/Materials (discovered 2 exits: *Mat / [*Min]) -9/Materials (discovered 4 exits: [*Mat x3] / [*Min]) -9/Mines History --------- Turn | Location | Event 6 | -11/Scrapyard | Discovered new exit (range 16) 195 | -11/Scrapyard | Entered Materials 308 | -10/Materials | Build established: Mutant 543 | -10/Materials | Discovered new exit (range 10) 780 | -10/Materials | Build established: Scavenger-Mutant 833 | -10/Materials | Discovered new exit (range 16) 895 | -10/Materials | Derelicts attacked the area 925 | -10/Materials | Entered another Materials area 925 | -9/Materials | Evolved 2 slots: Utility x2 1153 | -9/Materials | Destroyed 8 combat bots 1208 | -9/Materials | Lost 5 parts (1p1n1u2w) 1491 | -9/Materials | Build established: Scavenger-Skirmisher 1653 | -9/Materials | Discovered new exit (range 16) 1729 | -9/Materials | Repaired Corrupted Hacking Suite 2096 | -9/Materials | Build established: Scavenger-Assassin 2501 | -9/Materials | Discovered new exit (range 15) 2737 | -9/Materials | Build established: Mutant 2806 | -9/Materials | Discovered new exit (range 16) 3302 | -9/Materials | Build established: Scavenger-Mutant 3422 | -9/Materials | Discovered new exit (range 12) 3819 | -9/Materials | Repaired Mni. Grenade Launcher 3846 | -9/Materials | Repaired Lgt. Treads 3879 | -9/Materials | Repaired Imp. Ion Engine 4042 | -9/Materials | Entered Mines 4111 | -9/Mines | Self-destructed Last Messages --------------- 03969_ Destroyed Lgt. Ion Engine. 03969_ W-16 Scout system corrupted by crushing effect. 03969_ W-16 Scout knocked back. 03970_ W-16 Scout system terminally corrupted. 03970_ Visual Processing Unit fried. 03970_ Sensor Array fried. 03971_ K-01 Serf collects debris. 03976_ Acquired 20 matter. 04023_ System corrupted: Heat flow error (+207). LOCATION=UNKNOWN GOAL=ESCAPE 04043_ K-01 Serf collects debris. 04051_ K-01 Serf cleans the Seismic Survey Station. 04053_ K-01 Serf collects debris. 04058_ K-01 Serf cleans the Seismic Survey Station. 04063_ K-01 Serf collects debris. 04063_ K-01 Serf cleans the Seismic Survey Station. 04069_ K-01 Serf collects debris. 04089_ GX: JXSI,HY 8GIEU Map ----- +----------------------------------------------------+ | | | | | | | | | | | | | | | | | | | | | | | | | | | | | | | | | | | | | | | ?????????????????????????????????????????????????? | | ?????????????????????????????????????????????????? | | ???????????????????????????????###########???????? | | ???????????????????????########################### | | ???????????????????????########## ########## | | ???????????????????????## # | | ???????????????????????##@###### # | | ???????????????????????## ####### ##### # | | ???????????????????????## ##??### ########## # | | ???????????????????????## ##???### ########?## # | | ???????????????????????## ##???########??????## # | | ???????????????????????## ##????############### # | | ??????????????????????? ##????????########### # | | ??????????????????????? ####????????## | | ??????????????????????? ####????????## """ """ | | ????????????????????????????????????## """ """ | | ????????????????????????????????????## """ """ | | ????????????????????????????????????## | | ????????????????????????????????????## """ | | ????????????????????????????????????## """ | | ????????????????????????????????????## """ | | ????????????????????????????????????## | | ????????????????????????????????????## | | ????????????????????????????????????## | | ????????????????????????????????????############## | | ????????????????????????????????????############## | | ?????????????????????????????????????????????????? | | ?????????????????????????????????????????????????? | | ?????????????????????????????????????????????????? | | ?????????????????????????????????????????????????? | | ?????????????????????????????????????????????????? | +----------------------------------------------------+ Best States ------------- Heat Dissipation 38 Energy Generation 12 Energy Capacity 265 Matter Stores 300 Matter Capacity 300 Sight Range 16 Robot Scan Range 14 Terrain Scan Range 16 Terrain Scan Density 85 Armor Coverage 225 Propulsion Shielding 33 Evasion (%) 55 Targeting Accuracy 6 Recoil Reduction 2 Offensive Hacking 10 Item Schematics ----------------- Hcp. Storage Unit | -9/Materials | Hacked Robot Schematics ------------------ None Fabricated ------------ Nothing Alien Tech Used ----------------- None Achievements -------------- None Challenges ------------ None Game ------ Seed MeleeSegregatorShifter Manual? 0 Play Time 00:57:27 Cumulative 147.3 hours Start 2024.04.19 @ 03:07:41 End 2024.04.19 @ 04:17:33 Sessions 1 Manual Loads 0 Difficulty Rogue Special Mode None Game No. 141 Rogue 141 Adventurer 0 Explorer 0 Win Type - Total 0 Types 0/0/0/0/0/0/0/0/0 Lore% 37 Gallery% 44 Achievement% 35 Wizard Run 0 Options --------- Layout 0 ASCII 1 Keyboard 0 Movement Mouse Keybinds 0 Fullscreen 1 Font 18/SmallcapsGlow Map View 76x50 Zoom Use 0% Tactical HUD 1 Map Filters NONE Filters NONE Steam 1 RUN: ee86ff16-c2ab-4659-aef8-ab8b496920ac